bitfinex/quotes_BTCUSD_20251215
["timestamp","ask_amount","ask_price","bid_price","bid_amount"]
[1765799478338,0.2228749,89737.0,89735.0,0.01114392]
[1765799478690,0.2228749,89737.0,89735.0,0.23402214]
[1765799478841,0.23401457,89738.0,89735.0,0.23402214]
[1765799479238,0.01114355,89738.0,89736.0,0.22287562]
[1765799479919,0.01114367,89737.0,89733.0,0.23402576]
[1765799480104,0.23402249,89735.0,89732.0,0.24048561]
[1765799480316,0.22288344,89733.0,89732.0,0.0176]
[1765799480896,0.01114454,89730.0,89726.0,0.01114504]
[1765799481100,0.23403549,89730.0,89729.0,0.0176]
[1765799481313,0.23403549,89730.0,89726.0,0.23404368]
[1765799481314,0.01114454,89730.0,89725.0,0.02874516]
[1765799481659,0.22289337,89729.0,89726.0,0.22290059]
[1765799481858,0.23404166,89728.0,89725.0,0.0176]
[1765799482012,0.22290077,89727.0,89725.0,0.0176]
[1765799482219,0.23403634,89730.0,89727.0,0.22289685]
[1765799482431,0.23403634,89730.0,89727.0,0.23404176]
[1765799482639,0.01114454,89730.0,89728.0,0.22289511]
[1765799483121,0.23403445,89731.0,89728.0,0.22289511]
[1765799483318,0.01114454,89730.0,89726.0,0.01114504]
[1765799483570,0.22289573,89729.0,89726.0,0.23404579]
[1765799484016,0.2228964,89728.0,89726.0,0.01114504]
[1765799484226,0.2228964,89728.0,89725.0,0.2516472]
[1765799484427,0.2228964,89728.0,89725.0,0.02874516]
[1765799484639,0.22290083,89726.0,89725.0,0.0176]
[1765799484897,0.22289921,89727.0,89725.0,0.0176]
[1765799485093,0.22290083,89726.0,89725.0,0.0176]
[1765799485658,0.22289921,89727.0,89725.0,0.0176]
[1765799485864,0.22289906,89727.0,89725.0,0.0176]
[1765799486618,0.22290083,89726.0,89725.0,0.0176]
[1765799486820,0.22289906,89727.0,89725.0,0.0176]
[1765799487001,0.22489936,89727.0,89725.0,0.0176]
[1765799487224,0.001,89726.0,89725.0,0.0176]
[1765799487344,0.001,89726.0,89723.0,0.01114541]
[1765799487545,0.22290392,89725.0,89723.0,0.01114541]
[1765799488292,0.23404885,89725.0,89722.0,0.24051053]
[1765799488526,0.01314504,89726.0,89723.0,0.22290822]
[1765799488743,0.001,89725.0,89723.0,0.23405363]
[1765799489508,0.001,89725.0,89724.0,0.2229058]
[1765799489907,0.001,89725.0,89723.0,0.23405363]
[1765799490251,0.01114491,89727.0,89724.0,0.23405109]
[1765799490452,0.23404067,89728.0,89725.0,0.22290331]
[1765799490648,0.23404067,89728.0,89725.0,0.23404847]
[1765799490830,0.22289889,89727.0,89725.0,0.23404847]
[1765799491153,0.22289889,89727.0,89726.0,0.08896055]
[1765799491393,0.2340506,89725.0,89722.0,0.0176]
[1765799491603,0.22290828,89723.0,89722.0,0.0176]
[1765799492735,0.23405369,89723.0,89722.0,0.0176]
[1765799493553,0.23505369,89723.0,89722.0,0.0176]
[1765799494110,0.01214541,89723.0,89722.0,0.0176]
[1765799494313,0.001,89723.0,89722.0,0.24051076]
[1765799499382,0.001,89723.0,89722.0,0.22291076]
[1765799500513,0.001,89723.0,89721.0,0.0176]
[1765799500714,0.23505589,89723.0,89720.0,0.23406117]
[1765799500910,0.01214541,89723.0,89721.0,0.22291301]
[1765799501134,0.2350539,89723.0,89721.0,0.22291314]
[1765799501362,0.001,89723.0,89721.0,0.22291314]
[1765799501709,0.001,89723.0,89720.0,0.23406136]
[1765799501917,0.22390898,89723.0,89721.0,0.08896055]
[1765799502264,0.23405386,89723.0,89720.0,0.24051488]
[1765799502402,0.23505386,89723.0,89721.0,0.08896055]
[1765799502597,0.001,89723.0,89722.0,0.22291076]
[1765799502802,0.001,89723.0,89721.0,0.22291292]
[1765799503452,0.22390859,89723.0,89721.0,0.22291292]
[1765799503692,0.22291276,89722.0,89720.0,0.0176]
[1765799503920,0.2350538,89723.0,89722.0,0.08896055]
[1765799504823,0.001,89723.0,89722.0,0.31187131]
[1765799505019,0.001,89723.0,89722.0,0.08896055]
[1765799505239,0.2229058,89724.0,89722.0,0.08896055]
[1765799505404,0.22490828,89723.0,89722.0,0.08896055]
[1765799505999,0.002,89723.0,89722.0,0.08896055]
[1765799506314,0.22590828,89723.0,89722.0,0.08896055]
[1765799506497,0.003,89723.0,89722.0,0.08896055]
[1765799506681,0.003,89723.0,89722.0,0.31187131]
[1765799506880,0.01414541,89723.0,89718.0,0.01114603]
[1765799507169,0.01114566,89721.0,89717.0,0.22292242]
[1765799507320,0.003,89723.0,89719.0,0.02874591]
[1765799507520,0.003,89723.0,89720.0,0.22291382]
[1765799507751,0.002,89723.0,89722.0,0.22291076]
[1765799508156,0.01114516,89725.0,89723.0,0.22290726]
[1765799508536,0.23405057,89726.0,89724.0,0.22290503]
[1765799509366,0.23405057,89726.0,89723.0,0.23405365]
[1765799509545,0.002,89725.0,89723.0,0.23405365]
[1765799509759,0.23405057,89726.0,89723.0,0.23405365]
[1765799509959,0.23404966,89725.0,89722.0,0.23405629]
[1765799510645,0.23504966,89725.0,89722.0,0.23405629]
[1765799511044,0.22290616,89724.0,89722.0,0.23405629]
[1765799511263,0.23504966,89725.0,89722.0,0.23405629]
[1765799511674,0.23704966,89725.0,89722.0,0.23405629]
[1765799511869,0.23504966,89725.0,89722.0,0.23405629]
[1765799512255,0.0029,89723.0,89722.0,0.23405629]
[1765799513313,0.0029,89723.0,89721.0,0.22290886]
[1765799513514,0.22581012,89723.0,89720.0,0.32302152]
[1765799513715,0.22581012,89723.0,89721.0,0.22291311]
[1765799513893,0.0029,89723.0,89721.0,0.22291311]
[1765799514119,0.0039,89723.0,89722.0,0.22291076]
[1765799514881,0.0059,89723.0,89722.0,0.22291076]
[1765799515507,0.0049,89723.0,89722.0,0.22291076]
[1765799515848,0.0059,89723.0,89722.0,0.22291076]
[1765799516268,0.0049,89723.0,89722.0,0.22291076]
[1765799516689,0.0059,89723.0,89722.0,0.22291076]
[1765799517866,0.0089,89723.0,89722.0,0.22291076]
[1765799525861,0.0089,89723.0,89722.0,0.22188486]
[1765799530867,0.0089,89723.0,89722.0,0.23948486]
[1765799534391,0.0089,89723.0,89722.0,0.24051076]
[1765799535877,0.0089,89723.0,89722.0,0.22291076]
[1765799552711,0.0089,89723.0,89721.0,0.0176]
[1765799552926,0.0089,89723.0,89722.0,0.24051076]
[1765799553224,0.0089,89723.0,89722.0,0.0176]
[1765799553430,0.0089,89723.0,89719.0,0.23405938]
[1765799553640,0.23405891,89721.0,89720.0,0.0176]
[1765799554258,0.01114553,89722.0,89720.0,0.0176]
[1765799554672,0.22291325,89721.0,89720.0,0.0176]
[1765799555082,0.22491325,89721.0,89720.0,0.0176]
[1765799555288,0.22491325,89721.0,89714.0,0.01114653]
[1765799555289,0.2229207,89718.0,89714.0,0.01114653]
[1765799555499,0.23406613,89719.0,89716.0,0.22292516]
[1765799555712,0.23406546,89719.0,89715.0,0.25167431]
[1765799555946,0.01114591,89719.0,89716.0,0.23407029]
[1765799556164,0.01114591,89719.0,89717.0,0.22292311]
[1765799556367,0.23406592,89719.0,89716.0,0.23407029]
[1765799557203,0.001,89719.0,89718.0,0.2229207]
[1765799557502,0.001,89719.0,89717.0,0.22292319]
[1765799557926,0.002,89719.0,89718.0,0.2229207]
[1765799558292,0.03199674,89722.0,89720.0,0.22291513]
[1765799558505,0.02096627,89722.0,89720.0,0.22291513]
[1765799559528,0.02196627,89722.0,89720.0,0.22291513]
[1765799559738,0.02196627,89722.0,89721.0,0.22291325]
[1765799560066,0.00111506,89722.0,89719.0,0.01114591]
[1765799560345,0.24487716,89722.0,89719.0,0.23406334]
[1765799560548,0.22602595,89722.0,89719.0,0.23406334]
[1765799560883,0.22402595,89722.0,89719.0,0.23406334]
[1765799561249,0.22502595,89722.0,89719.0,0.23406334]
[1765799561452,0.00211506,89722.0,89719.0,0.23406334]
[1765799561681,0.00311506,89722.0,89720.0,0.22291573]
[1765799561885,0.00311506,89722.0,89719.0,0.23406334]
[1765799562063,0.00211506,89722.0,89720.0,0.22291473]
[1765799562620,0.00311506,89722.0,89720.0,0.22291473]
[1765799562793,0.22502597,89722.0,89719.0,0.23406334]
[1765799563308,0.22402597,89722.0,89719.0,0.23406334]
[1765799563494,0.00111506,89722.0,89721.0,0.22291325]
[1765799563684,0.00311506,89722.0,89721.0,0.22291325]
[1765799563878,0.00111506,89722.0,89721.0,0.22291325]
[1765799564282,0.00211506,89722.0,89719.0,0.23406352]
[1765799564523,0.22302774,89722.0,89719.0,0.23406352]
[1765799564668,0.22402774,89722.0,89720.0,0.22291523]
[1765799564901,0.00311506,89722.0,89720.0,0.22291523]
[1765799565102,0.01114578,89720.0,89718.0,0.22292057]
[1765799565307,0.23406225,89720.0,89717.0,0.23406762]
[1765799565954,0.01114578,89720.0,89717.0,0.01114615]
[1765799566190,0.234063,89720.0,89717.0,0.23406713]
[1765799566600,0.23405935,89721.0,89718.0,0.22291855]
[1765799566804,0.01326059,89722.0,89720.0,0.22291382]
[1765799566978,0.01126059,89722.0,89720.0,0.22291382]
[1765799567336,0.00011506,89722.0,89720.0,0.22291382]
[1765799567952,0.00211506,89722.0,89721.0,0.22291325]
[1765799568395,0.00311506,89722.0,89721.0,0.22291325]
[1765799569019,0.00211506,89722.0,89721.0,0.22291325]
[1765799569236,0.00311506,89722.0,89721.0,0.22291325]
[1765799569606,0.00111506,89722.0,89721.0,0.22291325]
[1765799569990,0.00311506,89722.0,89721.0,0.22291325]
[1765799576435,0.01114566,89721.0,89719.0,0.22291727]
[1765799576641,0.00311506,89722.0,89721.0,0.22291325]
[1765799577202,0.00011506,89722.0,89721.0,0.22291325]
[1765799578591,0.00111506,89722.0,89721.0,0.22291325]
[1765799578969,0.00311506,89722.0,89721.0,0.22291325]
[1765799580323,0.0059,89723.0,89722.0,0.56362915]
[1765799580324,0.00576787,89723.0,89722.0,0.56362915]
[1765799580724,0.00576787,89723.0,89722.0,0.58122915]
[1765799580925,0.00576787,89723.0,89722.0,0.59518832]
[1765799581361,0.00576787,89723.0,89722.0,0.38465033]
[1765799581569,0.00576787,89723.0,89722.0,0.30448832]
[1765799582458,0.00576787,89723.0,89722.0,0.31748832]
[1765799582666,0.00576787,89723.0,89722.0,0.30448832]
[1765799582856,0.00576787,89723.0,89722.0,0.3601583]
[1765799582980,0.00576787,89723.0,89722.0,0.3661583]
[1765799583187,0.00576787,89723.0,89722.0,0.3781583]
[1765799583713,0.00576787,89723.0,89722.0,0.3661583]
[1765799583936,0.00576787,89723.0,89722.0,0.3721583]
[1765799584557,0.00576787,89723.0,89722.0,0.31648832]
[1765799584937,0.00576787,89723.0,89722.0,0.3721583]
[1765799585989,0.00576787,89723.0,89722.0,0.31648832]
[1765799586212,0.00576787,89723.0,89722.0,0.3721583]
[1765799586709,0.00576787,89723.0,89722.0,0.31648832]
[1765799586833,0.00576787,89723.0,89722.0,0.3721583]
[1765799587261,0.00576787,89723.0,89722.0,0.31648832]
[1765799587881,0.00576787,89723.0,89722.0,0.3721583]
[1765799589981,0.00576787,89723.0,89722.0,0.31648832]
[1765799590111,0.00576787,89723.0,89722.0,0.3721583]
[1765799590741,0.00576787,89723.0,89722.0,0.31648832]
[1765799590949,0.00576787,89723.0,89722.0,0.3721583]
[1765799592050,0.00576787,89723.0,89722.0,0.31648832]
[1765799592321,0.00576787,89723.0,89722.0,0.3721583]
[1765799594228,0.00576787,89723.0,89722.0,0.31648832]
[1765799594971,0.00576787,89723.0,89722.0,0.3721583]
[1765799596375,0.00576787,89723.0,89722.0,0.31648832]
[1765799598102,0.00576787,89723.0,89722.0,0.3721583]
[1765799598285,0.00576787,89723.0,89722.0,0.31648832]
[1765799599311,0.00576787,89723.0,89722.0,0.3721583]
[1765799599712,0.00576787,89723.0,89722.0,0.31648832]
[1765799599933,0.00576787,89723.0,89722.0,0.24886993]
[1765799600126,0.00576787,89723.0,89722.0,0.26646993]
[1765799600967,0.00576787,89723.0,89722.0,0.26046993]
[1765799601743,0.00576787,89723.0,89722.0,0.25446993]
[1765799601921,0.00576787,89723.0,89722.0,0.25546993]
[1765799606897,0.00576787,89723.0,89722.0,0.24151076]
[1765799608678,0.00576787,89723.0,89722.0,0.29718074]
[1765799608885,0.00576787,89723.0,89722.0,0.24151076]
[1765799609268,0.00576787,89723.0,89722.0,0.37169116]
[1765799609475,0.00576787,89723.0,89722.0,0.32499592]
[1765799609885,0.00576787,89723.0,89722.0,0.3806659]
[1765799610292,0.00576787,89723.0,89722.0,0.32499592]
[1765799610498,0.00576787,89723.0,89722.0,0.3806659]
[1765799610804,0.00576787,89723.0,89722.0,0.32499592]
[1765799611354,0.00576787,89723.0,89722.0,0.3806659]
[1765799611639,0.00576787,89723.0,89722.0,0.3796659]
[1765799611846,0.00576787,89723.0,89722.0,0.4046659]
[1765799612259,0.00576787,89723.0,89722.0,0.34899592]
[1765799612891,0.00576787,89723.0,89722.0,0.4046659]
[1765799615021,0.00576787,89723.0,89722.0,0.5198659]
[1765799617651,0.00576787,89723.0,89722.0,0.46419592]
[1765799617906,0.00576787,89723.0,89722.0,0.5198659]
[1765799618319,0.00576787,89723.0,89722.0,0.46419592]
[1765799619854,0.00576787,89723.0,89722.0,0.5198659]
[1765799623323,0.00576787,89723.0,89722.0,0.46419592]
[1765799623525,0.00576787,89723.0,89722.0,0.5198659]
[1765799624065,0.00576787,89723.0,89722.0,0.5473953]
[1765799624224,0.00576787,89723.0,89722.0,0.49172532]
[1765799624431,0.00576787,89723.0,89722.0,0.5473953]
[1765799625275,0.00576787,89723.0,89722.0,0.49172532]
[1765799625828,0.00576787,89723.0,89722.0,0.5473953]
[1765799629233,0.00576787,89723.0,89722.0,0.49172532]
[1765799629416,0.00576787,89723.0,89722.0,0.5473953]
[1765799629821,0.00576787,89723.0,89722.0,0.49172532]
[1765799630255,0.00576787,89723.0,89722.0,0.44659592]
[1765799630457,0.00576787,89723.0,89722.0,0.46419592]
[1765799630659,0.00576787,89723.0,89722.0,0.54438031]
[1765799631002,0.00576787,89723.0,89722.0,0.53138031]
[1765799631188,0.00576787,89723.0,89722.0,0.53238031]
[1765799631596,0.00576787,89723.0,89722.0,0.53638031]
[1765799631805,0.00576787,89723.0,89722.0,0.45619592]
[1765799632186,0.00576787,89723.0,89722.0,0.44319592]
[1765799632602,0.00576787,89723.0,89722.0,0.45019592]
[1765799632902,0.00576787,89723.0,89722.0,0.46019592]
[1765799642455,0.00576787,89723.0,89722.0,0.5158659]
[1765799642859,0.00576787,89723.0,89722.0,0.46019592]
[1765799643933,0.00576787,89723.0,89722.0,0.5158659]
[1765799644129,0.00576787,89723.0,89722.0,0.46019592]
[1765799644356,0.00576787,89723.0,89722.0,0.5158659]
[1765799645427,0.00576787,89723.0,89722.0,0.46019592]
[1765799646059,0.00576787,89723.0,89722.0,0.5158659]
[1765799647360,0.00576787,89723.0,89722.0,0.46019592]
[1765799648379,0.00576787,89723.0,89722.0,0.5158659]
[1765799649635,0.00576787,89723.0,89722.0,0.46019592]
[1765799649852,0.00576787,89723.0,89722.0,0.5158659]
[1765799650809,0.00576787,89723.0,89722.0,0.46019592]
[1765799651251,0.00576787,89723.0,89722.0,0.5158659]
[1765799651916,0.00576787,89723.0,89722.0,0.46019592]
[1765799652119,0.00576787,89723.0,89722.0,0.5158659]
[1765799653096,0.00576787,89723.0,89722.0,0.46019592]
[1765799654430,0.00576787,89723.0,89722.0,0.5158659]
[1765799654643,0.00576787,89723.0,89722.0,0.46019592]
[1765799654836,0.00576787,89723.0,89722.0,0.5158659]
[1765799655040,0.00576787,89723.0,89722.0,0.46019592]
[1765799655253,0.00576787,89723.0,89722.0,0.75089592]
[1765799655467,0.00105385,89723.0,89722.0,0.8065659]
[1765799656194,0.00105385,89723.0,89722.0,1.8065659]
[1765799656614,0.00105385,89723.0,89722.0,1.75089592]
[1765799657026,0.00105385,89723.0,89722.0,1.73989592]
[1765799657230,0.00105385,89723.0,89722.0,1.72989592]
[1765799657431,0.00105385,89723.0,89722.0,1.7985659]
[1765799657649,0.00105385,89723.0,89722.0,1.8105659]
[1765799665559,0.00019323,89723.0,89722.0,1.8105659]
[1765799668427,0.00019323,89723.0,89722.0,0.8105659]
[1765799668626,0.00019323,89723.0,89722.0,1.8105659]
[1765799670390,0.00019323,89723.0,89722.0,1.7985659]
[1765799670769,0.00019323,89723.0,89722.0,1.8105659]
[1765799671154,0.00019323,89723.0,89722.0,1.7975659]
[1765799671552,0.00019323,89723.0,89722.0,1.8115659]
[1765799672236,0.00019323,89723.0,89722.0,1.75589592]
[1765799672913,0.00019323,89723.0,89722.0,1.8115659]
[1765799675496,3.62e-05,89723.0,89722.0,1.8115659]
[1765799679182,3.62e-05,89723.0,89722.0,1.8115659]
[1765799679349,0.00666,89745.0,89744.0,0.27287451]
[1765799679563,0.00666,89745.0,89744.0,0.49463506]
[1765799680170,0.00666,89745.0,89744.0,0.50129506]
[1765799680582,0.00827287,89745.0,89744.0,0.36231612]
[1765799680993,0.00827287,89745.0,89744.0,0.36031612]
[1765799683353,0.00827287,89745.0,89744.0,0.24511612]
[1765799696239,0.00827287,89745.0,89744.0,0.23845612]
[1765799711513,0.00827287,89745.0,89744.0,0.0176]
[1765799712190,0.00827287,89745.0,89744.0,0.24045612]
[1765799717898,0.00827287,89745.0,89744.0,0.0176]
[1765799718275,0.00827287,89745.0,89744.0,0.24045612]
[1765799721768,0.00827287,89745.0,89744.0,0.0176]
[1765799721959,0.00827287,89745.0,89744.0,0.24045612]
[1765799723188,0.00827287,89745.0,89744.0,0.0176]
[1765799723660,0.00827287,89745.0,89744.0,0.24045612]
[1765799730146,0.00827287,89745.0,89734.0,0.02874404]
[1765799730147,0.01114305,89742.0,89734.0,0.02874404]
[1765799730367,0.22286854,89739.0,89738.0,0.08896055]
[1765799731195,0.25633572,89739.0,89738.0,0.08896055]
[1765799733285,0.22287847,89735.0,89734.0,0.0176]
[1765799733515,0.22289089,89730.0,89729.0,0.1152]
[1765799733738,0.2228995,89727.0,89725.0,0.01114516]
[1765799733932,0.2228995,89727.0,89724.0,0.23404871]
[1765799734142,0.23404441,89727.0,89724.0,0.23404871]
[1765799734339,0.22290129,89726.0,89723.0,0.25165163]
[1765799734544,0.22290129,89726.0,89724.0,0.22290565]
[1765799734770,0.23404441,89727.0,89724.0,0.22290565]
[1765799735193,0.23404441,89727.0,89723.0,0.25165163]
[1765799735391,0.22290135,89726.0,89724.0,0.22290576]
[1765799735628,0.22290135,89726.0,89723.0,0.25165163]
[1765799735786,0.22290135,89726.0,89723.0,0.0176]
[1765799735787,0.22290382,89725.0,89723.0,0.0176]
[1765799736007,0.2229058,89724.0,89723.0,0.0176]
[1765799736244,0.22290382,89725.0,89723.0,0.0176]
[1765799736534,0.01114504,89726.0,89723.0,0.0176]
[1765799736738,0.22290524,89725.0,89723.0,0.24050819]
[1765799736943,0.22290411,89725.0,89723.0,0.24050787]
[1765799737356,0.23404659,89726.0,89723.0,0.24050787]
[1765799737560,0.22290408,89725.0,89723.0,0.24050787]
[1765799737777,0.2229058,89724.0,89723.0,0.0176]
[1765799738219,0.22289319,89730.0,89710.0,0.01114702]
[1765799738220,0.03347091,89725.0,89710.0,0.01114702]
[1765799738440,0.23408189,89714.0,89711.0,0.0176]
[1765799738653,0.01114702,89710.0,89706.0,0.01114752]
[1765799738875,0.01114678,89712.0,89709.0,0.0176]
[1765799739074,0.2340832,89712.0,89709.0,0.0176]
[1765799739300,0.01114653,89714.0,89710.0,0.01114702]
[1765799739505,0.22292659,89716.0,89712.0,0.01114678]
[1765799739807,9.396e-05,89714.0,89712.0,0.23408216]
[1765799740009,9.396e-05,89714.0,89711.0,0.0111469]
[1765799740212,0.22302497,89714.0,89712.0,0.22293522]
[1765799740371,0.22293358,89713.0,89710.0,0.007]
[1765799740552,0.01124049,89714.0,89710.0,0.007]
[1765799740757,0.22293778,89712.0,89710.0,0.007]
[1765799741110,0.2229381,89711.0,89709.0,0.25168858]
[1765799741273,0.2229381,89711.0,89709.0,0.0176]
[1765799741470,0.22294058,89710.0,89709.0,0.0176]
[1765799744393,0.22455345,89710.0,89709.0,0.0176]
[1765799745173,0.22294409,89709.0,89707.0,0.0111474]
[1765799745534,0.22294409,89709.0,89706.0,0.23409676]
[1765799746071,0.03347726,89708.0,89706.0,0.23409676]
[1765799746456,0.25642329,89708.0,89706.0,0.01114752]
[1765799746661,0.03347726,89708.0,89706.0,0.01114752]
[1765799747366,0.23409124,89709.0,89706.0,0.01114752]
[1765799747562,0.2675685,89709.0,89706.0,0.23409781]
[1765799747787,0.23409401,89708.0,89705.0,0.2341004]
[1765799748155,0.04462441,89709.0,89707.0,0.22294698]
[1765799748356,0.26756814,89709.0,89706.0,0.2340959]
[1765799748552,0.04462441,89709.0,89706.0,0.01114752]
[1765799748930,0.01275989,89710.0,89706.0,0.2340976]
[1765799749345,0.01114777,89708.0,89706.0,0.2340976]
[1765799749997,0.01114777,89708.0,89706.0,0.01114752]
[1765799750269,0.01114777,89708.0,89706.0,0.23409799]
[1765799750444,0.01114777,89708.0,89705.0,0.01114765]
[1765799750610,0.01114777,89708.0,89706.0,0.22295052]
[1765799750813,0.01114777,89708.0,89707.0,0.22294804]
[1765799751012,0.01114777,89708.0,89706.0,0.22295052]
[1765799751453,0.01114777,89708.0,89707.0,0.22294804]
[1765799752430,0.01114628,89716.0,89713.0,0.22293313]
[1765799752658,0.01114615,89717.0,89713.0,0.22293313]
[1765799752870,0.03357122,89714.0,89713.0,0.22293313]
[1765799754562,9.396e-05,89714.0,89713.0,0.22293313]
[1765799755519,9.396e-05,89714.0,89711.0,0.23408458]
[1765799755680,9.396e-05,89714.0,89713.0,0.22293313]
[1765799756654,9.396e-05,89714.0,89712.0,0.22293341]
[1765799757093,9.396e-05,89714.0,89713.0,0.22293313]
[1765799761907,9.396e-05,89714.0,89708.0,0.01114727]
[1765799762108,0.01114665,89713.0,89710.0,0.01114702]
[1765799762313,0.22293757,89712.0,89709.0,0.01114715]
[1765799762493,0.22293835,89711.0,89709.0,0.01114715]
[1765799762856,0.23408435,89712.0,89709.0,0.23408801]
[1765799763064,0.23408015,89713.0,89709.0,0.23408801]
[1765799763276,0.23408266,89712.0,89709.0,0.23408801]
[1765799763487,0.23408011,89713.0,89710.0,0.2340869]
[1765799763895,0.23408011,89713.0,89711.0,0.22293808]
[1765799764110,0.23408011,89713.0,89711.0,0.2229373]
[1765799764762,0.01114665,89713.0,89711.0,0.2229373]
[1765799765264,0.24531878,89714.0,89708.0,0.01114727]
[1765799765265,0.02238776,89714.0,89708.0,0.01114727]
[1765799765483,0.01114678,89712.0,89709.0,0.01114715]
[1765799765703,0.22294756,89708.0,89706.0,0.01114752]
[1765799765916,0.22295216,89706.0,89704.0,0.01114777]
[1765799766132,0.22295216,89706.0,89703.0,0.32306436]
[1765799766343,0.22295216,89706.0,89703.0,0.08896055]
[1765799766344,0.22295526,89705.0,89703.0,0.08896055]
[1765799766559,0.01114752,89706.0,89704.0,0.22295482]
[1765799768213,0.01114752,89706.0,89703.0,0.32306578]
[1765799768214,0.22295354,89705.0,89703.0,0.10010844]
[1765799768463,0.23409827,89706.0,89703.0,0.31191759]
[1765799769246,0.22295394,89705.0,89703.0,0.31191849]
[1765799769466,0.23409828,89706.0,89703.0,0.31191849]
[1765799770486,0.01114789,89703.0,89698.0,0.2341188]
[1765799770692,0.22296379,89701.0,89698.0,0.22297021]
[1765799770899,0.22296379,89701.0,89697.0,0.23412037]
[1765799771744,0.22296544,89700.0,89696.0,0.01114876]
[1765799771960,0.22296544,89700.0,89693.0,0.03347827]
[1765799772175,0.22296544,89700.0,89693.0,0.01114914]
[1765799772381,0.22296544,89700.0,89695.0,0.01114889]
[1765799772585,0.22296544,89700.0,89694.0,0.23412703]
[1765799773049,0.22296544,89700.0,89695.0,0.01114889]
[1765799773512,0.22296544,89700.0,89696.0,0.01114876]
[1765799773973,0.22297139,89698.0,89696.0,0.01114876]
[1765799774189,0.23411193,89701.0,89697.0,0.22297239]
[1765799774396,0.01114827,89700.0,89697.0,0.22297239]
[1765799774534,0.23411601,89700.0,89697.0,0.22297239]
[1765799775620,0.23411601,89700.0,89698.0,0.22296969]
[1765799775792,0.01114814,89701.0,89699.0,0.22296689]
[1765799776088,0.23411135,89701.0,89698.0,0.23411881]
[1765799776472,0.2341133,89702.0,89699.0,0.22296722]
[1765799777295,0.2341133,89702.0,89698.0,0.23411881]
[1765799777296,0.2229656,89700.0,89698.0,0.01114852]
[1765799777692,0.0176,89704.0,89700.0,0.01114827]
[1765799777894,0.22295586,89704.0,89700.0,0.23411335]
[1765799778106,0.23410607,89703.0,89700.0,0.23411335]
[1765799781109,0.01114802,89702.0,89698.0,0.23411838]
[1765799781319,0.22296097,89702.0,89699.0,0.23411418]
[1765799782192,0.22296421,89701.0,89698.0,0.2341176]
[1765799782974,0.23411568,89700.0,89697.0,0.23411948]
[1765799783654,0.01114827,89700.0,89698.0,0.22296998]
[1765799784096,0.01114827,89700.0,89689.0,0.27407212]
[1765799784097,0.01275965,89712.0,89705.0,0.01114765]
[1765799784296,0.01114715,89709.0,89703.0,0.01114789]
[1765799784511,0.0111474,89707.0,89704.0,0.01114777]
[1765799784731,0.23409778,89707.0,89703.0,0.23410576]
[1765799784947,0.23409556,89707.0,89704.0,0.23410136]
[1765799785166,0.23409608,89707.0,89704.0,0.01114777]
[1765799785371,0.23409546,89707.0,89705.0,0.22295286]
[1765799785575,0.0111474,89707.0,89704.0,0.01114777]
[1765799785996,0.0111474,89707.0,89705.0,0.2229529]
[1765799786447,0.23409562,89707.0,89704.0,0.23410286]
[1765799786675,0.23409304,89708.0,89705.0,0.31191227]
[1765799786835,0.01114727,89708.0,89705.0,0.32305992]
[1765799787415,0.24523634,89710.0,89707.0,0.23409534]
[1765799788039,0.22294356,89709.0,89707.0,0.0111474]
[1765799788183,0.23409071,89709.0,89706.0,0.01114752]
[1765799788608,0.01114727,89708.0,89704.0,0.23410146]
[1765799788822,0.01114727,89708.0,89705.0,0.23409961]
[1765799789000,0.0111474,89707.0,89704.0,0.2341028]
[1765799789427,0.23409302,89708.0,89705.0,0.23410053]
[1765799789635,0.23409302,89708.0,89706.0,0.22295033]
[1765799790037,0.01114727,89708.0,89706.0,0.22295033]
[1765799791918,0.0111474,89707.0,89703.0,0.23410395]
[1765799792191,0.0111474,89707.0,89705.0,0.08896055]
[1765799792388,0.23409559,89707.0,89705.0,0.31191249]
[1765799792546,0.0111474,89707.0,89705.0,0.31191249]
[1765799793360,0.23409415,89708.0,89705.0,0.31191249]
[1765799793564,0.0111469,89711.0,89707.0,0.23409544]
[1765799793741,0.00161287,89712.0,89710.0,0.22294058]
[1765799793936,0.00161287,89712.0,89711.0,0.2229381]
[1765799794304,0.03347786,89718.0,89711.0,0.2229381]
[1765799794305,0.51360118,89726.0,89713.0,0.22293313]
[1765799794433,0.30184504,89726.0,89713.0,0.22293313]
[1765799795053,0.52474588,89726.0,89713.0,0.22293313]
[1765799795254,0.01114516,89725.0,89713.0,0.22293313]
[1765799795512,0.22291019,89723.0,89713.0,0.22293313]
[1765799795712,0.01114553,89722.0,89713.0,0.22293313]
[1765799795926,0.2340568,89722.0,89713.0,0.22293313]
[1765799796689,0.01114566,89721.0,89713.0,0.22293313]
[1765799796894,0.22291827,89719.0,89713.0,0.22293313]
[1765799797097,0.23407238,89716.0,89713.0,0.22293313]
[1765799798809,0.01114628,89716.0,89713.0,0.22293313]
[1765799799024,0.2229144,89721.0,89713.0,0.22293313]
[1765799799346,0.02085121,89720.0,89713.0,0.22293313]
[1765799799919,0.01114553,89722.0,89713.0,0.22293313]
[1765799800703,0.01114578,89720.0,89713.0,0.22293313]
[1765799800905,0.02085121,89719.0,89713.0,0.22293313]
[1765799801037,0.03199699,89720.0,89713.0,0.22293313]
[1765799801243,0.02085121,89720.0,89713.0,0.22293313]
[1765799801847,0.03199662,89723.0,89713.0,0.22293313]
[1765799802060,0.01114553,89722.0,89713.0,0.22293313]
[1765799802259,0.02085121,89721.0,89713.0,0.22293313]
[1765799802612,0.03199687,89721.0,89713.0,0.22293313]
[1765799802980,0.02085121,89721.0,89713.0,0.22293313]
[1765799803328,0.03199674,89722.0,89713.0,0.22293313]
[1765799803535,0.02085121,89722.0,89713.0,0.22293313]
[1765799804267,0.02085121,89723.0,89713.0,0.22293313]
[1765799804871,0.03199662,89723.0,89713.0,0.22293313]
[1765799805650,0.25490727,89723.0,89713.0,0.22293313]
[1765799805850,0.23405606,89723.0,89713.0,0.22293313]
[1765799806050,0.02085121,89722.0,89713.0,0.22293313]
[1765799806272,0.01114566,89721.0,89713.0,0.22293313]
[1765799806394,0.02085121,89720.0,89713.0,0.22293313]
[1765799808330,0.03199674,89722.0,89713.0,0.22293313]
[1765799808540,0.01114566,89721.0,89713.0,0.22293313]
[1765799808711,0.254908,89722.0,89713.0,0.22293313]
[1765799808712,0.02085121,89720.0,89713.0,0.22293313]
[1765799809133,0.03199699,89720.0,89713.0,0.22293313]
[1765799809547,0.02085121,89720.0,89713.0,0.22293313]
[1765799810585,0.01114591,89719.0,89713.0,0.22293313]
[1765799810758,0.02085121,89718.0,89713.0,0.22293313]
[1765799810960,0.00170683,89714.0,89713.0,0.22293313]
[1765799811172,0.00170683,89714.0,89711.0,0.2340829]
[1765799811337,0.02255804,89714.0,89713.0,0.22293313]
[1765799811542,0.02255804,89714.0,89703.0,0.01114789]
[1765799811742,0.22294387,89709.0,89707.0,0.0287474]
[1765799812014,0.22294387,89709.0,89707.0,0.24054804]
[1765799812161,0.01114702,89710.0,89708.0,0.22294493]
[1765799812348,0.25655253,89710.0,89707.0,0.25169544]